[Event "Marienbad B2-IM 2024"]
[Site "Marianske Lazne"]
[Date "2024.01.18"]
[Round "7.16"]
[White "Plischki, Sebastian"]
[Black "Wang, Yukun"]
[Result "1-0"]
[ECO "A05"]
[WhiteElo "2345"]
[BlackElo "2117"]
[Annotator "TA"]
[PlyCount "102"]
[EventDate "2024.01.10"]
[EventType "tourn"]
[EventCountry "CZE"]
[SourceTitle "playchess.com"]
[Source "ChessBase"]
[SourceQuality "1"]
[TimeControl "40/5400+30:1800+30"]

{[%evp 10,102,14,5,45,8,27,14,23,10,43,41,38,42,47,34,37,31,39,37,32,32,44,48,39,41,61,56,62,63,76,68,68,68,74,74,74,74,76,76,80,67,71,47,76,54,50,43,43,42,61,62,76,76,76,54,76,76,69,69,76,67,75,76,76,76,76,37,98,79,135,97,187,168,154,157,268,252,358,354,956,841,945,727,2391,2121,2048,1858,2831,1700,29973,29974,29976,29977,5535]} 1. Nf3 {[%emt 0:00:06]} Nf6 {[%emt 0:00:07]} 2. g3 {[%emt 0:00:35]} d5 {[%emt 0:00:18]} 3. Bg2 {[%emt 0:00:13]} Bf5 {[%emt 0:00:09]} 4. O-O {[%emt 0:00:27]} c6 {[%emt 0:00:07]} 5. d3 {[%emt 0:00:09]} e6 {[%emt 0:00:08]} 6. Nh4 {[%emt 0:00:39]} Bg6 {[%emt 0:00:04] A07: Réti Opening: New York and Capablanca Systems.} 7. e4 {[%emt 0:01:55]} dxe4 {[%emt 0:00:47]} (7... Bh5 $5 {[%cal Rh5d1]} 8. Qe1 Bc5 $11) 8. Nxg6 {[%emt 0:00:18]} hxg6 {[%emt 0:00:06] [#] The position is equal.} 9. d4 $146 {[%emt 0:01:43] Against Bc5} ({Predecessor:} 9. dxe4 Qxd1 10. Rxd1 Nbd7 11. h3 Bc5 12. Nd2 O-O-O 13. Nb3 Bb6 14. Kf1 Nc5 15. Rxd8+ Rxd8 16. Nxc5 Bxc5 {½-½ Roiz,M (2659)-Laznicka,V (2578) EU-ch 9th Plovdiv 2008 (11)}) 9... c5 {[%emt 0:04:46]} 10. dxc5 $1 {[%emt 0:01:37]} Qxd1 {[%emt 0:00:33]} 11. Rxd1 {[%emt 0:00:07]} Bxc5 {[%emt 0:07:50] White must now prevent ...Ng4.} 12. Nc3 {[%emt 0:01:24]} Nbd7 {[%emt 0:02:41][%cal Oe4e3]} 13. Nxe4 {[%emt 0:01:27]} Nxe4 {[%emt 0:00:28]} 14. Bxe4 {[%emt 0:00:07]} O-O-O {[%emt 0:00:08]} 15. Kg2 {[%emt 0:10:50]} Nf6 {[%emt 0:01:56][%csl LRd1,LRe4]} 16. Rxd8+ {[%emt 0:02:57]} Rxd8 {[%emt 0:00:06]} 17. Bf3 {[%emt 0:00:26]} b6 {[%emt 0:01:53]} 18. Bg5 {[%emt 0:03:30]} Kc7 {[%emt 0:00:37]} 19. h4 {[%emt 0:00:31]} Rd4 {[%emt 0:06:39]} 20. Re1 {[%emt 0:06:10]} Rd7 {[%emt 0:04:10]} 21. c3 {[%emt 0:03:28]} Nh7 {[%emt 0:01:57]} 22. Bf4+ {[%emt 0:01:37] This pair of bishops is nice.} Bd6 {[%emt 0:00:01]} 23. Bc1 {[%emt 0:00:11] White is more active.} Nf6 {[%emt 0:00:35]} 24. Kf1 {[%emt 0:05:00]} Bc5 {[%emt 0:00:39]} 25. Ke2 {[%emt 0:04:11]} Nd5 {[%emt 0:03:25]} 26. Rd1 {[%emt 0:01:42]} Nf6 {[%emt 0:00:20]} 27. Rxd7+ {[%emt 0:00:12]} Nxd7 $16 {[%emt 0:00:06][%mdl 4096] Endgame KBB-KBN} 28. b4 {[%emt 0:00:47]} Bd6 {[%emt 0:00:06]} 29. Kd1 {[%emt 0:03:04]} Ne5 {[%emt 0:00:22]} 30. Be2 {[%emt 0:00:14]} Nc6 {[%emt 0:00:16]} 31. Kc2 {[%emt 0:01:38]} Be5 {[%emt 0:01:43]} 32. Be3 {[%emt 0:01:48]} Ne7 {[%emt 0:00:33]} 33. Bd3 {[%emt 0:10:32]} Nd5 {[%emt 0:00:15]} 34. Bd2 {[%emt 0:00:09]} Nf6 {[%emt 0:00:10]} 35. Be1 {[%emt 0:03:37]} Bd6 {[%emt 0:01:15]} 36. Bb5 {[%emt 0:03:40]} Nd7 {[%emt 0:01:35]} 37. Bxd7 {[%emt 0:13:26]} Kxd7 {[%emt 0:00:02] KB-KB} 38. b5 {[%emt 0:00:15]} e5 {[%emt 0:01:57]} (38... Bc5 $14) 39. f3 {[%emt 0:00:28]} f5 {[%emt 0:00:35]} (39... Ke6 $142) 40. Kd3 {[%emt 0:02:17]} Bc5 {[%emt 0:00:33]} (40... Ba3 $16) 41. a4 $1 $18 {[%emt 0:32:21][%cal Ba2a4,Ba4a5][%mdl 32]} Ke6 {[%emt 0:31:05]} 42. c4 $1 {[%emt 0:00:08]} Kd6 {[%emt 0:04:58] [#]} (42... Kf7 $16 {is a better defense.}) 43. g4 $1 {[%emt 0:08:25]} Ke6 {[%emt 0:03:13] [#]} (43... e4+ {was called for.} 44. fxe4 fxg4) 44. a5 $1 {[%emt 0:06:18]} Kd6 $2 {[%emt 0:03:41]} (44... bxa5 45. Bxa5 Bf8) 45. a6 {[%emt 0:00:00]} Ke6 {[%emt 0:00:00]} 46. Bc3 {[%emt 0:00:00]} Kd6 {[%emt 0:00:00]} 47. gxf5 {[%emt 0:00:00]} gxf5 {[%emt 0:00:00]} 48. h5 {[%emt 0:00:00]} Bg1 {[%emt 0:00:00] [#]} 49. f4 $1 {[%emt 0:00:00][%mdl 512]} e4+ {[%emt 0:00:00]} (49... exf4 50. Bxg7) 50. Kc2 {[%emt 0:00:00]} Bh2 {[%emt 0:00:00]} 51. Bxg7 {[%emt 0:00:00]} e3 {Weighted Error Value: White=0.06 (flawless) /Black=0.39} 1-0

[Event "Marienbad B2-IM 2024"]
[Site "Marianske Lazne"]
[Date "2024.01.18"]
[Round "7.17"]
[White "Luberanski, Jakub"]
[Black "Lim, Zhuo Ren"]
[Result "0-1"]
[ECO "B90"]
[WhiteElo "2278"]
[BlackElo "2218"]
[Annotator "NA RC"]
[PlyCount "86"]
[EventDate "2024.01.10"]
[EventType "tourn"]
[EventCountry "CZE"]
[SourceTitle "playchess.com"]
[Source "ChessBase"]
[SourceQuality "1"]
[TimeControl "40/5400+30:1800+30"]

1. e4 {[%emt 0:07:18]} c5 {[%emt 0:00:08]} 2. Nf3 {[%emt 0:00:05]} d6 {[%emt 0:00:19]} 3. d4 {[%emt 0:00:06]} cxd4 {[%emt 0:00:05]} 4. Nxd4 {[%emt 0:00:04]} Nf6 {[%emt 0:00:04]} 5. Nc3 {[%emt 0:00:05]} a6 {[%emt 0:00:04]} 6. h3 {[%emt 0:00:05]} e5 {[%emt 0:00:14]} 7. Nde2 {[%emt 0:00:06]} h5 {[%emt 0:00:34]} 8. Bg5 {[%emt 0:01:44]} Be6 {[%emt 0:00:21]} 9. g3 {[%emt 0:01:32]} Nbd7 {[%emt 0:00:48]} 10. a4 {[%emt 0:01:06]} Be7 {[%emt 0:02:31]} 11. Bg2 {[%emt 0:01:14]} Bc4 {[%emt 0:07:51]} 12. O-O {[%emt 0:04:57]} O-O {[%emt 0:02:18]} 13. Qd2 {[%emt 0:11:03]} b5 {[%emt 0:01:55]} 14. axb5 {[%emt 0:07:21]} axb5 {[%emt 0:00:06]} 15. b3 {[%emt 0:03:44]} Bxe2 {[%emt 0:01:19]} 16. Qxe2 {[%emt 0:00:04]} b4 {[%emt 0:00:30]} 17. Na4 {[%emt 0:05:04]} Qc7 {[%emt 0:02:12]} 18. h4 {[%emt 0:02:14]} g6 {[%emt 0:03:27]} 19. Bh3 {[%emt 0:05:19]} Nb6 {[%emt 0:04:39]} 20. Nxb6 {[%emt 0:00:08]} Qxb6 {[%emt 0:00:09]} 21. Qc4 {[%emt 0:02:29]} Kg7 {[%emt 0:04:01]} 22. Kg2 {[%emt 0:09:58]} Qb7 {[%emt 0:00:48]} 23. Rae1 {[%emt 0:02:55]} Ra5 {[%emt 0:03:15]} 24. Qd3 {[%emt 0:01:40]} Rc5 {[%emt 0:02:45]} 25. f3 {[%emt 0:05:13]} Rc3 {[%emt 0:01:09]} 26. Qd2 {[%emt 0:00:05]} Ra8 {[%emt 0:02:16]} 27. Re3 {[%emt 0:01:32]} Rc7 {[%emt 0:03:15]} 28. Rf2 {[%emt 0:05:17]} Ra2 {[%emt 0:00:33]} 29. Qd1 {[%emt 0:00:08]} Qa7 {[%emt 0:01:49]} 30. Rd3 {[%emt 0:00:36]} Qc5 {[%emt 0:03:22]} 31. Rdd2 {[%emt 0:02:59]} Qc3 {[%emt 0:08:28]} 32. Rd3 {[%emt 0:00:12]} Qb2 {[%emt 0:01:30]} 33. Rdd2 {[%emt 0:07:35]} Rc3 {[%emt 0:14:37]} 34. Bxf6+ {[%emt 0:01:35]} Bxf6 {[%emt 0:01:04]} 35. Kh2 {[%emt 0:04:22]} Be7 {[%emt 0:01:39]} 36. Bf1 {[%emt 0:00:24]} Ra1 {[%emt 0:00:59]} 37. Qe2 {[%emt 0:00:06]} Qc1 {[%emt 0:00:15]} 38. Qb5 {[%emt 0:01:43]} Re3 {[%emt 0:02:26]} 39. Kg2 {[%emt 0:02:22]} Re1 {[%emt 0:00:49]} 40. Qd3 {[%emt 0:01:17]} d5 {[%emt 0:01:58]} 41. f4 {[%emt 0:05:51]} dxe4 {[%emt 0:05:21]} 42. Qc4 {[%emt 0:00:24]} Rxf1 {[%emt 0:00:44]} 43. Qxf1 {[%emt 0:04:47]} e3 {[%emt 0:00:28]} 0-1

[Event "Marienbad B2-IM 2024"]
[Site "Marianske Lazne"]
[Date "2024.01.18"]
[Round "7.18"]
[White "Pavlis, Matej"]
[Black "Kejna, Piotr"]
[Result "0-1"]
[ECO "A46"]
[WhiteElo "2088"]
[BlackElo "2269"]
[Annotator "NA RC"]
[PlyCount "134"]
[EventDate "2024.01.10"]
[EventType "tourn"]
[EventCountry "CZE"]
[SourceTitle "playchess.com"]
[Source "ChessBase"]
[SourceQuality "1"]
[TimeControl "40/5400+30:1800+30"]

1. d4 {[%emt 0:00:01]} Nf6 {[%emt 0:00:26]} 2. Nf3 {[%emt 0:00:05]} c5 {[%emt 0:00:23]} 3. g3 {[%emt 0:00:51]} cxd4 {[%emt 0:01:29]} 4. Nxd4 {[%emt 0:00:18]} e5 {[%emt 0:01:58]} 5. Nb3 {[%emt 0:00:43]} d5 {[%emt 0:02:57]} 6. Bg2 {[%emt 0:00:33]} Nc6 {[%emt 0:08:24]} 7. Bg5 {[%emt 0:02:44]} Be6 {[%emt 0:06:40]} 8. O-O {[%emt 0:06:50]} Be7 {[%emt 0:04:59]} 9. Nc3 {[%emt 0:01:12]} d4 {[%emt 0:01:48]} 10. Na4 {[%emt 0:00:24]} Bd5 {[%emt 0:05:33]} 11. Bxf6 {[%emt 0:02:54]} gxf6 {[%emt 0:01:41]} 12. Qd3 {[%emt 0:08:22]} Bxg2 {[%emt 0:06:43]} 13. Kxg2 {[%emt 0:00:02]} Qd7 {[%emt 0:05:34]} 14. Qf3 {[%emt 0:13:27]} b6 {[%emt 0:11:44]} 15. Rfd1 {[%emt 0:01:50]} Rd8 {[%emt 0:08:51]} 16. e3 {[%emt 0:10:58]} Qe6 {[%emt 0:01:31]} 17. exd4 {[%emt 0:00:38]} exd4 {[%emt 0:00:09]} 18. c3 {[%emt 0:09:11]} Qc4 {[%emt 0:05:36]} 19. Nxd4 {[%emt 0:00:12]} Ne5 {[%emt 0:06:47]} 20. b3 {[%emt 0:00:29]} Nxf3 {[%emt 0:01:43]} 21. bxc4 {[%emt 0:00:06]} Ne5 {[%emt 0:00:25]} 22. c5 {[%emt 0:05:20]} bxc5 {[%emt 0:01:05]} 23. Nb5 {[%emt 0:00:11]} O-O {[%emt 0:00:44]} 24. f4 {[%emt 0:08:12]} Ng4 {[%emt 0:02:14]} 25. Kg1 {[%emt 0:04:28]} f5 {[%emt 0:06:11]} 26. h3 {[%emt 0:03:47]} Nf6 {[%emt 0:00:46]} 27. Nc7 {[%emt 0:02:14]} Ne4 {[%emt 0:01:36]} 28. Nd5 {[%emt 0:00:17]} Bd6 {[%emt 0:00:36]} 29. Kg2 {[%emt 0:00:20]} Kh8 {[%emt 0:01:03]} 30. Kf3 {[%emt 0:00:11]} Rg8 {[%emt 0:01:29]} 31. g4 {[%emt 0:01:20]} Rde8 {[%emt 0:00:08]} 32. Ne3 {[%emt 0:01:03]} fxg4+ {[%emt 0:00:27]} 33. hxg4 {[%emt 0:00:51]} Rg6 {[%emt 0:01:43]} 34. Rd5 {[%emt 0:03:19]} Rge6 {[%emt 0:01:44]} 35. Nf5 {[%emt 0:00:32]} Bf8 {[%emt 0:00:40]} 36. Rad1 {[%emt 0:07:56]} Be7 {[%emt 0:01:57]} 37. g5 {[%emt 0:01:47]} f6 {[%emt 0:00:28]} 38. Nxe7 {[%emt 0:02:39]} R6xe7 {[%emt 0:00:34]} 39. gxf6 {[%emt 0:02:36]} Nxf6 {[%emt 0:00:07]} 40. R5d3 c4 {[%emt 0:00:36]} 41. Rd8 {[%emt 0:01:50]} Re3+ {[%emt 0:02:20]} 42. Kf2 {[%emt 0:00:39]} Re2+ {[%emt 0:01:10]} 43. Kf1 {[%emt 0:00:06]} Rxa2 {[%emt 0:04:49]} 44. Nc5 {[%emt 0:02:25]} Rxd8 {[%emt 0:03:27]} 45. Rxd8+ {[%emt 0:00:08]} Kg7 {[%emt 0:00:05]} 46. Rd4 {[%emt 0:06:47]} Ng4 {[%emt 0:00:11]} 47. Ke1 {[%emt 0:01:06]} h5 {[%emt 0:02:20]} 48. Rxc4 {[%emt 0:02:46]} h4 {[%emt 0:02:21]} 49. f5 {[%emt 0:02:43]} Ne3 {[%emt 0:00:45]} 50. f6+ Kf7 {[%emt 0:00:59]} 51. Re4 {[%emt 0:03:28]} h3 {[%emt 0:01:45]} 52. Rxe3 {[%emt 0:01:15]} h2 {[%emt 0:00:10]} 53. Rh3 {[%emt 0:00:05]} h1=Q+ {[%emt 0:00:28]} 54. Rxh1 {[%emt 0:00:07]} Ra1+ {[%emt 0:00:02]} 55. Kd2 {[%emt 0:00:07]} Rxh1 {[%emt 0:00:03]} 56. Kd3 {[%emt 0:01:20]} Kxf6 {[%emt 0:00:16]} 57. Kc4 {[%emt 0:00:04]} Rb1 {[%emt 0:00:59]} 58. Nb3 {[%emt 0:02:23]} Ke7 {[%emt 0:01:35]} 59. Kb4 {[%emt 0:00:19]} Kd6 {[%emt 0:01:28]} 60. c4 {[%emt 0:00:10]} Kc6 {[%emt 0:00:50]} 61. Ka4 {[%emt 0:00:27]} Rh1 {[%emt 0:01:41]} 62. Kb4 {[%emt 0:00:09]} Rh5 {[%emt 0:00:54]} 63. Na5+ {[%emt 0:03:23]} Kb6 {[%emt 0:00:06]} 64. Nb3 {[%emt 0:00:23]} a5+ {[%emt 0:01:13]} 65. Ka4 {[%emt 0:00:10]} Rh2 {[%emt 0:00:57]} 66. Ka3 {[%emt 0:00:11]} Rg2 {[%emt 0:00:53]} 67. Nd4 {[%emt 0:00:40]} Rg4 {[%emt 0:00:57]} 0-1

[Event "Marienbad B2-IM 2024"]
[Site "Marianske Lazne"]
[Date "2024.01.18"]
[Round "7.19"]
[White "Balinski, Damian"]
[Black "Lima, Darcy"]
[Result "0-1"]
[ECO "D71"]
[WhiteElo "2226"]
[BlackElo "2370"]
[Annotator "TA"]
[PlyCount "138"]
[EventDate "2024.01.10"]
[EventType "tourn"]
[EventCountry "CZE"]
[SourceTitle "playchess.com"]
[Source "ChessBase"]
[SourceQuality "1"]
[TimeControl "40/5400+30:1800+30"]

{[%evp 9,138,29,27,0,15,20,22,18,20,28,25,26,29,0,23,17,0,-95,-46,-108,-103,-107,-90,-87,-92,-91,-83,-75,-79,-99,-106,-107,-108,-103,-100,-95,-95,-103,-99,-103,-102,-106,-104,-105,-101,-103,-95,-95,-95,-95,-95,-95,-95,-95,-95,-103,-95,-95,-89,-89,-89,-95,-95,-95,-95,-95,-89,-95,-95,-95,-89,-116,-116,-116,-116,-116,-116,-116,-116,-116,-116,-116,-116,-116,-116,-158,-116,-116,-116,-116,-116,-116,-116,-116,-116,-116,-116,-116,-116,-116,-99,-116,-116,-116,-116,-116,0,-102,-100,-107,-107,-107,-107,-106,-92,-107,-107,-101,-101,-256,-249,-575,-566,-901,-641,-621,-621,-11602,-6258,-5730,-5726]} 1. d4 {[%emt 0:00:04]} Nf6 {[%emt 0:00:20]} 2. c4 {[%emt 0:00:03]} g6 {[%emt 0:00:36]} 3. g3 {[%emt 0:00:15]} c5 {[%emt 0:01:59]} 4. dxc5 {[%emt 0:02:47]} Bg7 {[%emt 0:01:19]} 5. Nc3 {[%emt 0:00:37]} Na6 {[%emt 0:01:20]} 6. Rb1 {[%emt 0:05:42] E60: King's Indian: Unusual lines and Fianchetto Variation without Nc3.} Nxc5 {[%emt 0:02:46]} 7. Bg2 {[%emt 0:05:58]} d6 {[%emt 0:12:03] [#]} 8. b4 $146 {[%emt 0:06:36] The position is equal.} ({Predecessor:} 8. e4 Be6 9. b3 Qd7 10. Bb2 O-O 11. Qe2 a6 12. Nf3 b5 13. Nd2 Bg4 14. Qe3 {0-1 Martin,D (2005)-Dyachuk,A (2320) Walsrode Chessemy op-A 2023 (5)}) 8... Ne6 {[%emt 0:00:30]} 9. Nf3 {[%emt 0:06:59]} O-O {[%emt 0:02:36]} 10. O-O {[%emt 0:01:08]} Bd7 {[%emt 0:00:18]} 11. Qb3 {[%emt 0:08:07]} Bc6 {[%emt 0:03:34]} 12. Rd1 {[%emt 0:06:31]} a5 {[%emt 0:02:47]} 13. a3 {[%emt 0:06:52]} (13. b5 $11 {remains equal.} Be4 14. Nxe4 Nxe4 15. Bb2) 13... axb4 {[%emt 0:03:40]} (13... Ne4 $1 $17 {[%cal Re4c3]} 14. Nd5 axb4 15. Qxb4 N6c5) 14. Qxb4 {[%emt 0:08:43]} (14. axb4 $15 Ne4 15. Nxe4 Bxe4 16. Rb2) 14... Ne4 $36 {[%emt 0:08:36][%mdl 2048] Keeping White busy.} 15. Nd5 {[%emt 0:01:10]} Ra4 {[%emt 0:11:58][%cal Ba8a4,Ba4c4,Bc4c5,Bc5b5,Bb5b3][%mdl 32]} 16. Qb6 {[%emt 0:09:23]} Nc3 {[%emt 0:07:10]} (16... Rxc4 17. Qxd8 Rxd8 18. Nxe7+ Kf8 19. Nxc6 bxc6 20. Nd2 Nxd2 21. Bxd2 $11) 17. Qxd8 {[%emt 0:11:23]} Rxd8 {[%emt 0:00:16]} 18. Nxc3 {[%emt 0:01:26]} Bxc3 {[%emt 0:00:05]} 19. Nd2 {[%emt 0:03:44]} Bxd2 {[%emt 0:02:37]} 20. Rxd2 {[%emt 0:00:28]} Rxc4 {[%emt 0:00:08]} 21. Bd5 {[%emt 0:03:15]} Rc5 {[%emt 0:17:23]} 22. Bxe6 {[%emt 0:00:22]} fxe6 {[%emt 0:00:01]} 23. Bb2 {[%emt 0:00:36]} e5 {[%emt 0:04:05]} 24. Rc1 {[%emt 0:00:56]} Rb5 {[%emt 0:00:18]} 25. f3 {[%emt 0:01:03]} Ra8 {[%emt 0:00:41]} 26. Rc4 {[%emt 0:01:22]} Rb3 {[%emt 0:02:17]} 27. Kf2 {[%emt 0:04:54]} Ra4 {[%emt 0:06:24]} 28. Rxa4 {[%emt 0:00:36]} Bxa4 {[%emt 0:00:02][%mdl 4096] Endgame KRB-KRB} 29. h4 {[%emt 0:01:00]} Kf7 {[%emt 0:00:11]} 30. Bc1 {[%emt 0:01:25]} Rb1 {[%emt 0:02:23]} 31. Bb2 {[%emt 0:00:26]} Ke6 {[%emt 0:00:27]} 32. Bc3 {[%emt 0:00:32]} Rb3 {[%emt 0:01:30][%csl LRa3,LRc3]} 33. Bb4 {[%emt 0:00:26]} Bc6 {[%emt 0:03:13]} 34. Rd3 {[%emt 0:00:30]} Rb2 {[%emt 0:00:35]} 35. Rd2 {[%emt 0:00:03]} Rb1 {[%emt 0:00:10]} 36. Rd3 {[%emt 0:01:11]} Bb5 {[%emt 0:00:44]} 37. Rd2 {[%emt 0:00:03]} Bc4 {[%emt 0:01:35]} 38. Rc2 {[%emt 0:00:39]} b5 {[%emt 0:00:36]} 39. e4 {[%emt 0:01:04]} Rb3 {[%emt 0:00:43]} 40. Rd2 {[%emt 0:00:57]} d5 {[%emt 0:01:20]} 41. Rd1 {[%emt 0:11:13]} ({Not} 41. exd5+ $2 Bxd5 42. f4 Rf3+ 43. Kg2 Rxf4+ 44. Kh2 Rf1 $19) 41... h5 {[%emt 0:04:44]} 42. Kg2 {[%emt 0:15:32]} ({Avoid the trap} 42. exd5+ $2 Bxd5 43. f4 Rf3+ 44. Ke2 e4 $19) 42... d4 {[%emt 0:02:53] Hoping for ...Be2.} 43. Kf2 {[%emt 0:01:26] Against Be2} Rb2+ {[%emt 0:03:00]} 44. Rd2 {[%emt 0:00:02]} Rb1 {[%emt 0:00:08]} 45. Kg2 {[%emt 0:00:49]} Bf1+ {[%emt 0:09:38]} 46. Kh2 {[%emt 0:00:02]} d3 {[%emt 0:01:14]} 47. Bc5 {[%emt 0:00:40]} Kd7 {[%emt 0:02:28]} 48. Bb4 {[%emt 0:00:27]} Be2 {[%emt 0:01:22]} 49. Kg2 {[%emt 0:00:14]} Rf1 {[%emt 0:00:57]} 50. Rb2 {[%emt 0:00:49]} Kc6 {[%emt 0:02:44]} (50... Bxf3+ $2 51. Kxf1 Bxe4 52. Kf2 $18) 51. Rd2 {[%emt 0:00:02]} e6 {[%emt 0:02:06]} (51... Bxf3+ $2 52. Kxf1 Bxe4 53. Kf2 $18) 52. Rb2 {[%emt 0:00:04]} Kd7 {[%emt 0:02:10]} (52... Bxf3+ $2 53. Kxf1 Bxe4 54. Kf2 $18) 53. Rd2 {[%emt 0:00:02]} Rc1 {[%emt 0:02:32]} (53... Bxf3+ $2 54. Kxf1 Bxe4 55. Rd1 $18) 54. Kf2 {[%emt 0:00:14]} Ke8 {[%emt 0:00:28]} 55. Kg2 {[%emt 0:00:35]} Rc7 {[%emt 0:00:32]} 56. Bd6 {[%emt 0:03:11][%csl LRc7,LRe5]} Rc2 {[%emt 0:00:09]} 57. Bb4 {[%emt 0:00:14]} Rc7 {[%emt 0:00:06] Black is more active.} 58. Bd6 $1 {[%emt 0:00:04][%csl LRc7,LRe5]} Rf7 {[%emt 0:00:05]} 59. f4 {[%emt 0:01:02]} exf4 {[%emt 0:00:01]} 60. gxf4 {[%emt 0:01:11] [#]} Kd7 $1 {[%emt 0:00:17]} 61. Be5 {[%emt 0:00:36]} Kc6 {[%emt 0:00:15]} 62. Kf2 {[%emt 0:00:34]} Ra7 {[%emt 0:00:50]} 63. Bb2 {[%emt 0:00:04]} Kc5 {[%emt 0:01:56] ...Ra4 would be deadly.} 64. Ke3 $2 {[%emt 0:00:06] [#] Loses the game.} (64. Bc1 $17 Rf7 65. Rb2) 64... Kc4 $1 $19 {[%emt 0:00:24]} 65. Bc1 $2 {[%emt 0:00:51]} (65. Kf2 {is more resistant.}) 65... b4 {Black is clearly winning.} 66. axb4 {[%emt 0:01:00]} Ra1 {[%emt 0:01:51]} ({And not} 66... Kxb4 67. Rb2+ Kc5 68. Rb1 $11) 67. Bb2 {[%emt 0:00:41]} Rf1 {[%emt 0:00:05][%csl Ge2][%cal Rf1f3]} 68. e5 {[%emt 0:01:41]} Kd5 {[%emt 0:00:20][%csl Ge2][%cal Rf1f3]} 69. Rxd3+ {[%emt 0:01:18]} Bxd3 {[%emt 0:00:07] Weighted Error Value: White=0.08 (flawless) /Black=0.06 (flawless)} 0-1